bitfinex/quotes_SOLUSD_20260302
["timestamp","ask_amount","ask_price","bid_price","bid_amount"]
[1772460432249,30.00270439,83.326,83.26,9.2288601]
[1772460432250,2.38177711,83.299,83.26,9.2288601]
[1772460432424,30.00270439,83.326,83.271,2.40265289]
[1772460432425,2.38177711,83.323,83.271,2.40265289]
[1772460432630,30.00270439,83.326,83.271,2.40265289]
[1772460432631,2.38177711,83.309,83.271,2.40265289]
[1772460433033,9.2288601,83.3,83.271,14.41163525]
[1772460433252,2.38177711,83.299,83.271,14.41163525]
[1772460433433,2.38177711,83.299,83.262,12.0102808]
[1772460433642,2.38177711,83.299,83.263,2.35976654]
[1772460434439,9.2288601,83.3,83.26,9.2288601]
[1772460434440,2.26282384,83.297,83.261,12.01040861]
[1772460434647,2.26282384,83.289,83.252,2.35976654]
[1772460434954,2.26282384,83.289,83.254,2.35976654]
[1772460435152,2.26282384,83.279,83.218,0.14216157]
[1772460435364,2.26282384,83.279,83.251,2.35976654]
[1772460436451,2.26282384,83.279,83.232,2.35976654]
[1772460436656,2.26282384,83.279,83.241,2.35976654]
[1772460436954,2.26282384,83.279,83.216,42.05921937]
[1772460436955,2.26282384,83.269,83.23,9.2288601]
[1772460437157,2.26282384,83.267,83.231,2.35976654]
[1772460437458,14.27249971,83.267,83.231,2.35976654]
[1772460437646,9.2288601,83.27,83.241,2.28939654]
[1772460437959,2.46969036,83.295,83.261,2.28939654]
[1772460438149,14.47447129,83.301,83.271,2.28939654]
[1772460438345,2.46969036,83.3,83.271,2.28939654]
[1772460438547,2.46969036,83.299,83.271,2.28939654]
[1772460439860,2.46969036,83.297,83.271,2.28939654]
[1772460440256,2.46969036,83.297,83.267,2.28939654]
[1772460440448,2.46969036,83.297,83.261,12.01042504]
[1772460440759,2.46969036,83.297,83.262,2.28939654]
[1772460441455,2.46969036,83.297,83.271,2.28939654]
[1772460441757,2.46969036,83.305,83.271,2.28939654]
[1772460441959,2.46969036,83.305,83.261,42.03648766]
[1772460441960,2.46969036,83.321,83.291,2.28939654]
[1772460442847,2.46969036,83.333,83.301,2.28939654]
[1772460443950,12.000192,83.332,83.303,2.28939654]
[1772460444149,14.46988236,83.332,83.303,2.28939654]
[1772460444862,2.46969036,83.329,83.296,12.00529505]
[1772460445163,2.46969036,83.329,83.297,2.28939654]
[1772460445455,2.46969036,83.329,83.301,2.28939654]
[1772460445669,12.000192,83.332,83.301,2.28939654]
[1772460445860,2.46969036,83.331,83.301,2.28939654]
[1772460446056,29.99662953,83.343,83.303,2.28939654]
[1772460446237,29.99662953,83.343,83.302,12.00451369]
[1772460446238,9.22824528,83.33,83.302,12.00451369]
[1772460446569,2.46969036,83.329,83.298,12.00502294]
[1772460446772,2.46969036,83.329,83.299,2.28939654]
[1772460446940,2.46969036,83.329,83.301,2.28939654]
[1772460447564,2.46969036,83.338,83.311,2.28939654]
[1772460448564,9.22824528,83.33,83.291,2.28939654]
[1772460448765,2.46969036,83.329,83.291,2.28939654]
[1772460449850,2.46969036,83.319,83.282,2.28939654]
[1772460450068,2.46969036,83.319,83.29,9.22824528]
[1772460450772,9.22824528,83.33,83.29,9.22824528]
[1772460450773,2.46969036,83.317,83.29,23.52374666]
[1772460452448,2.46969036,83.317,83.291,2.28939654]
[1772460453051,2.46969036,83.315,83.284,2.28939654]
[1772460453343,2.46969036,83.315,83.285,12.00696403]
[1772460453965,2.46969036,83.315,83.271,3.69383402]
[1772460453966,2.46969036,83.309,83.276,2.28939654]
[1772460454688,2.46969036,83.289,83.247,2.28939654]
[1772460454968,14.47616402,83.289,83.261,2.28939654]
[1772460455155,12.0055407,83.295,83.261,2.28939654]
[1772460455861,2.46969036,83.294,83.261,2.28939654]
[1772460456060,2.46969036,83.314,83.281,2.28939654]
[1772460456559,2.7540135,83.329,83.291,2.28939654]
[1772460456946,2.46969036,83.319,83.291,2.28939654]
[1772460457146,2.46969036,83.319,83.283,2.28939654]
[1772460457359,2.46969036,83.317,83.281,12.00754073]
[1772460457563,2.46969036,83.317,83.282,2.28939654]
[1772460459566,12.00249651,83.316,83.284,2.28939654]
[1772460459768,2.46969036,83.315,83.284,2.28939654]
[1772460459950,12.00249651,83.316,83.217,48.06680985]
[1772460459951,2.46969036,83.309,83.278,12.00792491]
[1772460460469,2.46969036,83.309,83.281,2.28939654]
[1772460461173,2.46969036,83.339,83.3,9.22824528]
[1772460461473,12.0022084,83.318,83.285,12.00696403]
[1772460461656,2.46969036,83.317,83.285,14.29636057]
[1772460461966,2.46969036,83.317,83.29,9.22824528]
[1772460462169,2.46969036,83.317,83.291,2.28939654]
[1772460463173,2.46969036,83.317,83.285,12.00696403]
[1772460464154,2.46969036,83.315,83.285,14.29636057]
[1772460464355,2.46969036,83.315,83.28,11.51764182]
[1772460464569,2.46969036,83.315,83.281,2.28939654]
[1772460466475,2.46969036,83.313,83.281,2.28939654]
[1772460466661,2.46969036,83.313,83.281,14.29684725]
[1772460468283,2.46969036,83.313,83.282,2.35510695]
[1772460469162,2.36428813,83.311,83.282,2.35510695]
[1772460469374,2.36428813,83.309,83.277,14.36315407]
[1772460469673,2.36428813,83.309,83.278,2.35510695]
[1772460471075,42.01075474,83.312,83.27,3.69314552]
[1772460471076,2.36428813,83.307,83.28,2.35510695]
[1772460471876,2.36428813,83.307,83.273,2.35510695]
[1772460472053,2.36428813,83.305,83.266,2.35510695]
[1772460472258,2.36428813,83.299,83.266,2.35510695]
[1772460473467,2.36428813,83.297,83.266,14.36473975]
[1772460473775,2.36428813,83.297,83.267,2.35510695]
[1772460473975,12.00509015,83.298,83.271,2.35510695]
[1772460474554,12.00458778,83.302,83.271,2.35510695]
[1772460475082,2.64861127,83.316,83.281,2.35510695]
[1772460475260,2.36428813,83.315,83.281,2.35510695]
[1772460475864,2.36428813,83.313,83.282,2.35510695]
[1772460476080,12.00278464,83.314,83.282,2.35510695]
[1772460476878,12.00278464,83.314,83.291,2.35510695]
[1772460477186,12.00224232,83.318,83.291,2.35510695]
[1772460479109,14.36653045,83.318,83.291,2.35510695]
[1772460479283,2.36428813,83.317,83.291,2.35510695]
[1772460480973,12.00249651,83.316,83.291,2.35510695]
[1772460481177,14.36678464,83.316,83.292,12.00595495]
[1772460481384,12.00249651,83.316,83.293,2.35510695]
[1772460482069,2.36428813,83.309,83.279,12.0078291]
[1772460482265,2.36428813,83.309,83.28,2.35510695]
[1772460482473,2.36428813,83.309,83.281,2.35510695]
[1772460482979,2.36428813,83.315,83.281,2.35510695]
[1772460483360,3.69314552,83.32,83.283,2.35510695]
[1772460483565,6.05743365,83.33,83.291,2.35510695]
[1772460483764,2.36428813,83.329,83.291,2.35510695]
[1772460483988,2.36428813,83.319,83.284,2.35510695]
[1772460484282,2.36428813,83.309,83.277,2.35510695]
[1772460484785,2.36428813,83.309,83.27,3.69314552]
[1772460484786,2.36428813,83.299,83.27,2.35510695]
[1772460485177,2.36428813,83.299,83.271,2.35510695]
[1772460486612,2.36428813,83.299,83.273,2.35510695]
[1772460486613,12.00509015,83.298,83.273,2.35510695]
[1772460487066,14.36937828,83.298,83.273,2.35510695]
[1772460487675,2.36428813,83.297,83.273,2.35510695]
[1772460487893,2.36428813,83.297,83.253,2.63943009]
[1772460488069,2.36428813,83.297,83.261,2.35510695]
[1772460489292,2.36428813,83.295,83.262,12.0102808]
[1772460489469,2.36428813,83.295,83.263,2.35510695]
[1772460491466,12.0053784,83.296,83.271,2.35510695]
[1772460491667,2.36428813,83.319,83.281,2.35510695]
[1772460491868,2.36428813,83.319,83.291,2.35510695]
[1772460492292,42.000168,83.333,83.301,2.35510695]
[1772460492293,14.36433613,83.333,83.301,2.35510695]
[1772460493376,2.36428813,83.332,83.301,2.35510695]
[1772460493577,14.36462413,83.331,83.303,2.35510695]
[1772460493773,2.36428813,83.33,83.303,2.35510695]
[1772460493974,2.36428813,83.33,83.302,12.00451369]
[1772460493975,2.36428813,83.329,83.296,14.36043757]
[1772460494290,0.28432314,83.328,83.295,2.35510695]
[1772460494479,2.36428813,83.325,83.295,2.35510695]
[1772460496275,12.00062403,83.329,83.296,2.35510695]
[1772460496672,2.36428813,83.328,83.296,2.35510695]
[1772460498289,2.28855967,83.326,83.297,12.00523428]
[1772460499792,2.28855967,83.326,83.298,2.40504528]
[1772460500590,3.69405369,83.32,83.282,2.40504528]
[1772460500784,12.00066221,83.329,83.301,2.40504528]
[1772460501172,2.28855967,83.339,83.301,2.40504528]
[1772460501371,2.28855967,83.346,83.32,6.09909897]
[1772460501977,2.28855967,83.346,83.32,2.40504528]
[1772460502168,2.28855967,83.346,83.31,3.69405369]
[1772460502375,2.28855967,83.339,83.31,3.69405369]
[1772460502589,0.2,83.35,83.321,2.40504528]
[1772460502773,2.28855967,83.348,83.321,2.40504528]
[1772460504900,0.2,83.35,83.323,2.40504528]
[1772460505098,14.48623425,83.35,83.323,2.40504528]
[1772460506297,2.28855967,83.349,83.324,12.00134415]
[1772460507083,2.28855967,83.349,83.313,2.40504528]
[1772460507282,2.28855967,83.349,83.316,2.40504528]
[1772460507997,2.28855967,83.368,83.331,2.40504528]
[1772460508298,2.28855967,83.366,83.335,2.40504528]
[1772460509124,2.28855967,83.339,83.303,2.40504528]
[1772460509296,2.28855967,83.329,83.294,2.40504528]
[1772460509682,3.69405369,83.35,83.294,2.40504528]
[1772460509683,3.69405369,83.32,83.294,2.40504528]
[1772460509995,2.28855967,83.319,83.294,2.40504528]
[1772460510196,2.28855967,83.319,83.295,12.00552254]
[1772460510399,14.29076807,83.318,83.295,12.00552254]
[1772460510602,2.28855967,83.317,83.295,12.00552254]
[1772460510785,2.28855967,83.317,83.294,2.40504528]
[1772460511201,2.28855967,83.317,83.295,14.41056782]
[1772460512014,2.28855967,83.317,83.29,3.69405369]
[1772460512317,2.28855967,83.309,83.282,12.00739655]
[1772460512619,14.29215161,83.309,83.283,2.40504528]
[1772460512984,2.57288281,83.339,83.301,2.40504528]
[1772460514384,2.57288281,83.337,83.303,2.40504528]
[1772460516714,2.28855967,83.335,83.305,2.40504528]
[1772460517010,2.28855967,83.335,83.3,3.69405369]
[1772460517303,2.28855967,83.329,83.302,2.40504528]
[1772460517510,2.28855967,83.335,83.302,2.40504528]
[1772460519410,2.28855967,83.329,83.298,2.40504528]
[1772460519610,2.28855967,83.329,83.3,3.69405369]
[1772460519914,2.28855967,83.329,83.301,2.40504528]
[1772460522412,14.28932771,83.328,83.303,2.40504528]
[1772460522712,2.28855967,83.328,83.303,2.40504528]
[1772460522913,2.28855967,83.335,83.303,2.40504528]
[1772460524015,2.28855967,83.349,83.318,2.40504528]
[1772460525305,2.28855967,83.347,83.319,2.40504528]
[1772460525517,2.28855967,83.347,83.321,2.40504528]
[1772460528097,2.28855967,83.347,83.322,12.00163222]
[1772460528298,2.23544873,83.345,83.317,2.4170151]
[1772460528500,3.69405369,83.35,83.313,2.4170151]
[1772460528501,2.23544873,83.339,83.313,2.4170151]
[1772460528705,2.23544873,83.349,83.313,2.4170151]
[1772460529320,2.23544873,83.349,83.32,3.69405369]
[1772460529520,2.23544873,83.349,83.321,2.4170151]
[1772460529729,2.23544873,83.349,83.323,2.4170151]
[1772460529929,11.99777917,83.349,83.323,2.4170151]
[1772460530230,14.2332279,83.349,83.323,2.4170151]
[1772460530420,2.23544873,83.349,83.323,2.4170151]
[1772460532905,2.23544873,83.349,83.325,2.4170151]
[1772460533323,2.23544873,83.347,83.325,2.4170151]
[1772460533502,2.23544873,83.347,83.32,14.41888822]
[1772460534216,2.23544873,83.347,83.321,2.4170151]
[1772460535132,2.23544873,83.347,83.323,2.4170151]
[1772460535511,2.23544873,83.354,83.323,2.4170151]
[1772460536032,2.23544873,83.353,83.323,2.4170151]
[1772460536608,2.23544873,83.349,83.31,3.69405369]
[1772460536807,2.23544873,83.349,83.311,2.4170151]
[1772460537331,2.23544873,83.347,83.312,2.4170151]
[1772460537512,2.23544873,83.367,83.331,2.4170151]
[1772460539229,0.2575755,83.369,83.33,3.69405369]
[1772460539230,2.23544873,83.365,83.333,2.4170151]
[1772460541319,2.23544873,83.364,83.335,2.4170151]
[1772460543523,2.23544873,83.362,83.335,2.4170151]
[1772460543725,2.23544873,83.362,83.335,14.41668532]
[1772460544110,2.23544873,83.362,83.336,2.4170151]
[1772460544931,2.23544873,83.36,83.337,11.99947202]
[1772460545117,2.23544873,83.36,83.338,2.4170151]
[1772460546653,2.23544873,83.36,83.334,29.99966236]
[1772460546654,2.23544873,83.36,83.339,14.41619915]
[1772460546834,2.23544873,83.36,83.34,2.4170151]
[1772460547334,11.99556526,83.365,83.34,2.4170151]
[1772460547525,11.99556526,83.365,83.341,2.4170151]
[1772460547719,14.2304588,83.368,83.342,11.99875212]
[1772460547920,2.23544873,83.368,83.343,2.4170151]
[1772460549221,2.23544873,83.368,83.345,2.4170151]
[1772460549420,0.2575755,83.369,83.351,2.4170151]
[1772460549633,2.23544873,83.382,83.361,2.4170151]
[1772460550423,2.23544873,83.384,83.361,2.4170151]
[1772460551025,11.99291094,83.383,83.361,2.4170151]
[1772460551542,2.23544873,83.377,83.351,2.4170151]
[1772460551728,2.23544873,83.377,83.352,2.4170151]
[1772460552038,11.99301926,83.382,83.352,2.4170151]
[1772460552039,2.23544873,83.382,83.352,2.4170151]
[1772460552238,2.23544873,83.382,83.351,11.99733461]
[1772460552239,2.23544873,83.389,83.361,2.4170151]
[1772460552838,0.1,83.39,83.361,2.4170151]
[1772460553046,2.33544873,83.39,83.361,2.4170151]
[1772460553244,2.23544873,83.389,83.35,3.68836226]
[1772460553546,2.27708404,83.369,83.33,3.68836226]
[1772460555140,2.27708404,83.369,83.331,2.31344444]
[1772460556226,2.27708404,83.367,83.333,2.31344444]
[1772460556825,2.27708404,83.359,83.327,2.31344444]
[1772460557026,2.27708404,83.359,83.314,30.00686154]
[1772460557027,2.27708404,83.359,83.331,2.31344444]
[1772460558244,11.99644905,83.358,83.332,12.000192]
[1772460558448,2.27708404,83.359,83.34,3.68836226]
[1772460558633,2.27708404,83.359,83.34,5.96497267]
[1772460559034,2.2353974,83.365,83.341,2.27661041]
[1772460559341,2.2353974,83.364,83.341,2.27661041]
[1772460559547,2.2353974,83.364,83.34,3.68836226]
[1772460560338,2.2353974,83.362,83.33,3.68836226]
[1772460561029,2.2353974,83.362,83.33,5.96497267]
[1772460561232,2.2353974,83.362,83.331,2.27661041]
[1772460562539,2.2353974,83.359,83.321,2.27661041]
[1772460562856,2.2353974,83.359,83.33,3.68836226]
[1772460563231,2.2353974,83.359,83.318,12.0022084]
[1772460563232,2.2353974,83.375,83.341,2.27661041]
[1772460563539,2.2353974,83.371,83.341,2.27661041]
[1772460564256,2.2353974,83.371,83.342,2.27661041]
[1772460564644,29.98316538,83.381,83.344,2.27661041]
[1772460564645,2.2353974,83.369,83.344,2.27661041]
[1772460567942,2.2353974,83.369,83.35,3.68836226]
[1772460568763,2.2353974,83.369,83.345,14.27493064]
[1772460569959,2.2353974,83.375,83.351,2.27661041]
[1772460570543,2.2353974,83.374,83.35,3.68836226]
[1772460570748,2.2353974,83.369,83.33,3.68836226]
[1772460571147,2.2353974,83.369,83.33,5.96497267]
[1772460571341,2.2353974,83.369,83.331,2.27661041]
[1772460572166,2.2353974,83.367,83.332,12.000192]
[1772460572464,2.2353974,83.367,83.332,14.27680241]
[1772460572853,2.2353974,83.367,83.333,2.27661041]
[1772460574063,2.2353974,83.365,83.33,3.68836226]
[1772460574555,2.2353974,83.365,83.331,12.000336]
[1772460574764,2.2353974,83.365,83.332,2.27661041]
[1772460576759,42.26786558,83.366,83.332,2.27661041]
[1772460576760,2.2353974,83.363,83.332,2.27661041]
[1772460578860,2.2353974,83.361,83.333,12.000048]
[1772460579068,2.2353974,83.361,83.334,2.27661041]
[1772460579369,2.2353974,83.361,83.34,3.68836226]
[1772460579875,2.2353974,83.359,83.321,2.27661041]
[1772460580170,2.2353974,83.359,83.33,3.68836226]
[1772460580748,2.2353974,83.359,83.33,5.96497267]
[1772460583872,3.68836226,83.35,83.281,104.4]
[1772460584199,41.98757167,83.358,83.283,2.27661041]
[1772460584200,2.2353974,83.329,83.283,2.27661041]
[1772460584352,2.2353974,83.329,83.291,2.27661041]
[1772460584548,2.2353974,83.329,83.301,2.27661041]
[1772460585655,2.2353974,83.329,83.3,3.68836226]
[1772460586065,2.2353974,83.327,83.3,3.68836226]
[1772460587460,2.2353974,83.327,83.3,15.69312944]
[1772460588852,2.39019421,83.325,83.301,2.35417473]
[1772460590979,2.39019421,83.323,83.301,2.35417473]
[1772460592853,2.39019421,83.323,83.3,3.68836226]
[1772460593273,2.39019421,83.321,83.3,3.68836226]
[1772460595457,2.39019421,83.327,83.301,2.35417473]
[1772460596683,2.39019421,83.327,83.302,2.35417473]
[1772460598981,2.39019421,83.325,83.29,6.04253699]
[1772460599276,2.39019421,83.325,83.291,2.35417473]
[1772460599481,42.00369632,83.326,83.282,12.00739531]
[1772460599482,2.39019421,83.319,83.282,12.00739531]
[1772460599783,2.39019421,83.317,83.282,12.00739531]
[1772460600364,2.39019421,83.317,83.261,3.69383402]
[1772460600365,2.39019421,83.295,83.241,2.35417473]
[1772460600571,2.39019421,83.279,83.247,2.35417473]
[1772460600879,2.39019421,83.279,83.242,2.35417473]
[1772460601188,2.39019421,83.279,83.251,2.35417473]
[1772460601379,2.39019421,83.289,83.261,2.35417473]
[1772460601581,2.39019421,83.289,83.27,6.04253699]
[1772460601771,2.39019421,83.307,83.28,3.68836226]
[1772460601962,2.39019421,83.307,83.273,2.35417473]
[1772460602880,2.39019421,83.307,83.281,2.35417473]
[1772460603261,2.39019421,83.307,83.273,2.35417473]
[1772460603866,3.68836226,83.31,83.271,2.35417473]
[1772460603867,2.39019421,83.299,83.271,2.35417473]
[1772460605375,12.00393729,83.306,83.281,2.35417473]
[1772460605681,2.39019421,83.305,83.281,2.35417473]
[1772460606485,2.39019421,83.312,83.283,2.35417473]
[1772460607465,2.39019421,83.309,83.283,2.35417473]
[1772460607665,2.39019421,83.309,83.27,6.04253699]
[1772460607862,2.39019421,83.299,83.262,12.0102808]
[1772460608485,2.39019421,83.297,83.262,14.36445553]
[1772460608690,2.39019421,83.297,83.263,2.35417473]
[1772460609074,2.39019421,83.289,83.263,2.35417473]
[1772460610574,42.01781554,83.298,83.265,2.35417473]
[1772460610575,12.00581081,83.293,83.265,2.35417473]
[1772460610890,2.39019421,83.292,83.265,2.35417473]
[1772460612371,2.39019421,83.289,83.257,2.35417473]
[1772460612575,2.39019421,83.279,83.241,12.01331074]
[1772460612866,0.28432314,83.286,83.241,14.36748547]
[1772460612867,2.39019421,83.269,83.241,14.36748547]
[1772460613067,2.39019421,83.269,83.241,2.35417473]
[1772460613274,2.39019421,83.269,83.242,2.35417473]
[1772460613790,2.34966484,83.284,83.251,2.23552876]
[1772460613976,2.34966484,83.279,83.251,2.23552876]
[1772460614177,0.28432314,83.287,83.23,0.2]
[1772460614178,2.34966484,83.257,83.23,1e-08]
[1772460614374,3.69493772,83.26,83.23,1e-08]
[1772460614375,2.34966484,83.249,83.23,1e-08]
[1772460614595,12.01230059,83.248,83.23,1e-08]
[1772460614783,3.69493772,83.26,83.23,2.23552877]
[1772460615089,48.01614936,83.306,83.23,2.23552877]
[1772460615090,2.34966484,83.282,83.251,2.23552876]
[1772460615285,2.34966484,83.282,83.26,3.69493772]
[1772460615987,2.34966484,83.282,83.257,2.23552876]
[1772460617596,2.34966484,83.282,83.258,2.43304114]
[1772460617896,14.35718369,83.282,83.261,2.43304114]
[1772460618696,2.37386967,83.281,83.254,2.43304114]
[1772460619693,12.00606318,83.292,83.271,2.43304114]
[1772460620070,12.00552254,83.295,83.271,2.43304114]
[1772460620676,2.37386967,83.289,83.251,2.43304114]
[1772460620882,2.37386967,83.279,83.251,2.43304114]
[1772460621084,2.37386967,83.279,83.245,2.43304114]
[1772460621688,2.37386967,83.277,83.245,2.43304114]
[1772460621891,2.37386967,83.277,83.246,12.01258919]
[1772460622197,12.0073011,83.283,83.26,3.69493772]
[1772460622380,12.00696403,83.285,83.261,2.43304114]
[1772460622776,2.37386967,83.284,83.261,2.43304114]
[1772460622998,2.37386967,83.284,83.251,2.43304114]
[1772460624082,42.02437412,83.285,83.251,2.43304114]
[1772460624083,2.37386967,83.282,83.26,3.69493772]
[1772460624296,2.37386967,83.282,83.253,2.43304114]
[1772460625706,14.38047146,83.288,83.261,2.43304114]
[1772460625905,2.37386967,83.287,83.261,2.43304114]
[1772460626300,2.37386967,83.287,83.263,2.43304114]
[1772460627003,30.01353292,83.296,83.263,2.43304114]
[1772460627004,2.37386967,83.285,83.263,2.43304114]
[1772460627409,2.37386967,83.279,83.25,3.69493772]
[1772460627585,2.37386967,83.279,83.251,12.01186772]
[1772460627787,2.37386967,83.279,83.252,2.43304114]
[1772460628306,2.37386967,83.277,83.254,2.43304114]
[1772460629808,2.37386967,83.277,83.25,3.69493772]
[1772460630009,2.37386967,83.277,83.25,6.12797886]
[1772460630310,48.01553975,83.307,83.24,3.69493772]
[1772460630311,2.37386967,83.275,83.24,3.69493772]
[1772460630604,2.37386967,83.275,83.242,2.43304114]
[1772460631295,2.37386967,83.275,83.25,3.69493772]
[1772460631492,12.00826168,83.276,83.251,2.43304114]
[1772460632494,2.37386967,83.28,83.253,2.43304114]
[1772460634488,42.02740186,83.279,83.253,2.43304114]
[1772460634694,2.37386967,83.278,83.24,3.69493772]
[1772460634897,2.37386967,83.278,83.222,104.4]
[1772460634898,2.37386967,83.259,83.222,2.43304114]
[1772460635100,2.37386967,83.259,83.231,12.01475411]
[1772460635996,2.37386967,83.278,83.25,3.69493772]
[1772460636220,2.37386967,83.278,83.251,2.43304114]
[1772460638212,12.00811748,83.277,83.251,2.43304114]
[1772460638398,2.37386967,83.276,83.246,2.43304114]
[1772460638607,2.37386967,83.269,83.237,2.43304114]
[1772460639896,2.37386967,83.267,83.24,3.69493772]
[1772460640098,2.37386967,83.267,83.241,2.43304114]
[1772460641205,12.00970384,83.266,83.241,2.43304114]
[1772460641519,3.69493772,83.28,83.24,3.69493772]
[1772460641520,12.00921956,83.27,83.243,2.43304114]
[1772460642811,2.37386967,83.27,83.243,2.43304114]
[1772460644011,2.37386967,83.268,83.235,2.43304114]
[1772460644234,2.37386967,83.268,83.236,12.01395805]
[1772460644512,2.37386967,83.268,83.237,2.43304114]
[1772460646417,2.37386967,83.268,83.23,3.69493773]
[1772460646418,12.0095596,83.267,83.241,2.43304114]
[1772460646793,2.37386967,83.266,83.241,2.43304114]
[1772460648222,12.00984807,83.265,83.241,2.43304114]
[1772460649502,2.6092264,83.289,83.251,2.30897381]
[1772460649705,30.01746904,83.285,83.251,2.30897381]
[1772460649900,2.32490326,83.284,83.251,2.30897381]
[1772460651017,47.99904001,83.335,83.271,2.30897381]
[1772460651338,3.69493772,83.31,83.271,2.30897381]
[1772460651632,3.69493772,83.3,83.271,2.30897381]
[1772460652124,0.28432314,83.299,83.261,2.30897381]
[1772460652997,2.32490326,83.296,83.262,2.30897381]
[1772460654104,12.00552254,83.295,83.271,2.30897381]
[1772460654418,12.00503746,83.299,83.271,2.30897381]
[1772460654819,2.32490326,83.298,83.271,2.30897381]
[1772460655022,12.00503746,83.299,83.271,2.30897381]
[1772460655806,2.32490326,83.298,83.271,2.30897381]
[1772460657130,12.00523428,83.297,83.271,2.30897381]
[1772460657422,14.33013754,83.297,83.271,2.30897381]
[1772460657627,2.32490326,83.296,83.271,2.30897381]
[1772460658225,2.32490326,83.296,83.273,2.30897381]
[1772460661032,2.32490326,83.294,83.273,2.30897381]
[1772460661727,2.32490326,83.294,83.26,3.69493772]
[1772460661728,2.32490326,83.294,83.266,2.30897381]
[1772460661921,2.6092264,83.279,83.211,1.02885435]
[1772460662127,2.32490326,83.259,83.223,2.30897381]
[1772460662629,2.32490326,83.259,83.229,2.30897381]
[1772460663127,2.32490326,83.259,83.231,2.30897381]
[1772460663320,14.33576107,83.258,83.232,2.30897381]
[1772460663525,2.32490326,83.269,83.232,2.30897381]
[1772460664521,2.32490326,83.269,83.231,12.01475411]
[1772460664522,12.0095596,83.267,83.241,2.30897381]
[1772460664832,2.32490326,83.266,83.241,2.30897381]
[1772460666237,12.00984807,83.265,83.242,2.30897381]
[1772460666814,2.32490326,83.281,83.251,2.30897381]
[1772460667133,2.32490326,83.296,83.27,6.00391153]
[1772460667337,2.32490326,83.296,83.271,2.30897381]
[1772460668133,2.32490326,83.31,83.281,2.30897381]
[1772460668437,30.00677277,83.315,83.283,2.30897381]
[1772460668438,14.32840828,83.309,83.283,2.30897381]
[1772460668641,2.32490326,83.315,83.291,2.30897381]
[1772460668824,12.00278464,83.314,83.291,2.30897381]
[1772460670042,2.32490326,83.313,83.28,3.69493772]
[1772460670338,2.32490326,83.313,83.281,2.30897381]
[1772460670633,2.32490326,83.305,83.272,2.30897381]
[1772460671542,2.32490326,83.305,83.281,2.30897381]
[1772460671746,44.335658,83.312,83.281,2.30897381]
[1772460671911,2.32490326,83.311,83.281,2.30897381]
[1772460672523,2.32490326,83.318,83.292,2.30897381]
[1772460672724,2.32490326,83.328,83.292,2.30897381]
[1772460673331,2.32490326,83.326,83.292,2.30897381]
[1772460673546,0.28432314,83.316,83.28,3.69298369]
[1772460673722,2.28633649,83.315,83.28,6.13622412]
[1772460674124,2.28633649,83.315,83.281,2.44324043]
[1772460675641,2.28633649,83.313,83.283,2.44324043]
[1772460677924,2.28633649,83.313,83.259,3.69383402]
[1772460677925,2.33442084,83.346,83.301,2.24471973]
[1772460678226,2.33442084,83.346,83.3,3.69298369]
[1772460678227,0.28432314,83.336,83.3,3.69298369]
[1772460678437,2.33442084,83.325,83.29,3.69298369]
[1772460678636,2.33442084,83.319,83.29,3.69298369]
[1772460679020,2.33442084,83.319,83.29,5.93770342]
[1772460679225,2.33442084,83.319,83.291,2.24471973]
[1772460679840,12.0022084,83.318,83.291,2.24471973]
[1772460680038,2.33442084,83.317,83.291,2.24471973]
[1772460680244,2.33442084,83.317,83.292,2.24471973]
[1772460681844,2.33442084,83.317,83.275,3.69383402]
[1772460682043,2.33442084,83.299,83.261,2.24471973]
[1772460682224,2.33442084,83.299,83.252,12.01165018]
[1772460682225,2.33442084,83.299,83.271,2.24471973]
[1772460682426,2.33442084,83.295,83.267,2.24471973]
[1772460682626,42.0087378,83.316,83.271,2.24471973]
[1772460682627,2.61874398,83.315,83.271,2.24471973]
[1772460682845,12.00249651,83.316,83.291,2.24471973]
[1772460683723,14.33691735,83.316,83.291,2.24471973]
[1772460684351,12.00249651,83.316,83.291,2.24471973]
[1772460686550,14.33691735,83.316,83.291,2.24471973]
[1772460686958,12.00249651,83.316,83.293,2.24471973]
[1772460688031,12.00163222,83.322,83.301,2.24471973]
[1772460688236,2.33442084,83.325,83.301,2.24471973]
[1772460690335,2.33442084,83.327,83.303,2.24471973]
[1772460692144,12.00105609,83.326,83.303,2.24471973]
[1772460693255,2.33442084,83.363,83.321,2.24471973]
[1772460693451,11.99564319,83.364,83.321,2.24471973]
[1772460693452,2.33442084,83.359,83.321,2.24471973]
[1772460693631,2.33442084,83.339,83.301,2.24471973]
[1772460694846,2.33442084,83.339,83.31,3.69298369]
[1772460695051,2.33442084,83.339,83.311,2.24471973]
[1772460695252,2.33442084,83.339,83.312,12.00307278]
[1772460696133,2.33442084,83.337,83.312,12.00307278]
[1772460696339,2.33442084,83.325,83.293,2.24471973]
[1772460698248,2.33442084,83.323,83.293,2.24471973]
[1772460698956,2.33442084,83.345,83.31,3.69298369]
[1772460699162,2.33442084,83.339,83.302,2.24471973]
[1772460699460,2.33442084,83.329,83.302,2.24471973]
[1772460699843,2.33442084,83.329,83.295,2.24471973]
[1772460700450,2.33442084,83.327,83.301,2.24471973]
[1772460703263,12.00105609,83.326,83.301,2.24471973]
[1772460703563,2.33442084,83.325,83.301,2.24471973]